bitfinex-derivatives/quotes_SOLF0:USTF0_20250625
["timestamp","ask_amount","ask_price","bid_price","bid_amount"]
[1750885392276,5.27892956,145.25,145.23,6.8816]
[1750885392471,6.88,145.27,145.23,6.8816]
[1750885392672,10.19722423,145.26,145.24,6.8813]
[1750885392877,5.27894158,145.25,145.24,6.8813]
[1750885393385,20.1248,145.29,145.24,6.8813]
[1750885393682,17.07709991,145.28,145.24,6.8813]
[1750885393984,10.19719991,145.27,145.24,6.8813]
[1750885394179,10.19719991,145.26,145.24,6.8813]
[1750885394379,5.27891675,145.25,145.24,6.8813]
[1750885395181,20.1248,145.29,145.19,2.318]
[1750885395383,10.20737789,145.28,145.22,4.34503289]
[1750885395579,4.34503289,145.26,145.18,40.70503289]
[1750885395883,46.56737789,145.25,145.19,6.8837]
[1750885396074,10.20737789,145.24,145.19,6.8837]
[1750885396281,17.08918922,145.23,145.19,6.8837]
[1750885396474,6.8821,145.23,145.19,6.8837]
[1750885398283,6.8823,145.22,145.19,6.8837]
[1750885398787,6.882,145.23,145.19,6.8837]
[1750885398990,17.7938,145.29,145.18,36.36]
[1750885399185,13.1,145.29,145.27,4.34503289]
[1750885399695,13.1,145.29,145.28,6.8795]
[1750885399875,13.1,145.29,145.28,11.22453289]
[1750885400078,10.20961401,145.33,145.29,6.8787]
[1750885400282,10.20961401,145.33,145.3,4.34503289]
[1750885400676,4.9252068,145.33,145.3,4.34503289]
[1750885400876,4.9252068,145.33,145.32,4.34503289]
[1750885401077,37.32,145.37,145.3,4.34503289]
[1750885401278,10.21246297,145.36,145.29,37.32]
[1750885401478,37.32,145.37,145.31,4.34503289]
[1750885401681,37.32,145.37,145.32,6.8775]
[1750885401884,10.21241111,145.36,145.32,6.8775]
[1750885402084,10.21241111,145.35,145.31,4.34503289]
[1750885402287,54.17,145.37,145.33,4.34503289]
[1750885402288,16.85,145.37,145.33,4.34503289]
[1750885402491,10.19895509,145.36,145.33,4.34503289]
[1750885402788,5.27816595,145.35,145.29,41.66503289]
[1750885402989,5.27862709,145.34,145.29,41.66503289]
[1750885403290,16.85,145.37,145.29,41.66503289]
[1750885403492,49.24427722,145.36,145.29,41.66503289]
[1750885403682,10.20427722,145.35,145.29,37.32]
[1750885403877,10.20427722,145.34,145.27,4.34503289]
[1750885404090,6.8782,145.31,145.27,4.34503289]
[1750885404278,39.04,145.32,145.25,4.34503289]
[1750885404485,5.27841293,145.31,145.25,4.34503289]
[1750885404682,6.8793,145.29,145.25,4.34503289]
[1750885404993,4.91911266,145.31,145.25,4.34503289]
[1750885405193,6.8793,145.29,145.25,4.34503289]
[1750885405494,6.8793,145.29,145.25,11.22593289]
[1750885405690,6.8803,145.27,145.22,4.34503289]
[1750885406104,6.8803,145.27,145.21,4.34503289]
[1750885406295,9.26438186,145.3,145.23,4.34503289]
[1750885406486,5.27964167,145.29,145.23,4.34503289]
[1750885406691,4.34503289,145.3,145.23,11.22653289]
[1750885406889,5.27964197,145.29,145.23,11.22653289]
[1750885407088,4.34503289,145.3,145.23,4.34503289]
[1750885407297,12.15928722,145.29,145.24,6.8811]
[1750885407489,6.8791,145.29,145.24,6.8811]
[1750885408298,6.8791,145.29,145.25,6.8808]
[1750885409696,6.8787,145.3,145.26,6.8802]
[1750885410298,6.8787,145.3,145.27,6.8799]
[1750885410598,6.8787,145.3,145.23,4.34503289]
[1750885411127,6.8787,145.3,145.26,6.8801]
[1750885411293,2.2341,145.32,145.26,4.34503289]
[1750885411692,9.1118,145.32,145.28,6.8792]
[1750885412600,9.1118,145.32,145.26,4.34503289]
[1750885412601,2.2341,145.32,145.26,4.34503289]
[1750885413094,6.8783,145.31,145.27,6.8797]
[1750885413290,2.2341,145.32,145.25,4.34503289]
[1750885413698,2.2341,145.32,145.24,43.40503289]
[1750885413898,39.06,145.31,145.24,43.40503289]
[1750885414300,6.8791,145.29,145.26,6.8801]
[1750885414600,39.06,145.31,145.24,43.40503289]
[1750885414807,6.8782,145.31,145.28,6.8792]
[1750885415107,5.6405988,145.39,145.3,4.33677355]
[1750885415288,8.0658988,145.39,145.32,4.33677355]
[1750885415701,23.7255,145.37,145.33,6.8768]
[1750885416094,16.85,145.37,145.32,4.33677355]
[1750885416296,16.85,145.37,145.34,4.33677355]
[1750885416590,16.85,145.37,145.28,4.33677355]
[1750885416591,16.85,145.37,145.36,4.33024355]
[1750885416791,5.6405988,145.39,145.36,4.33024355]
[1750885417000,5.6405988,145.39,145.38,4.33024355]
[1750885417197,5.6405988,145.39,145.38,11.20494355]
[1750885417395,5.6405988,145.39,145.35,39.04]
[1750885417595,5.6405988,145.39,145.37,4.33024355]
[1750885417795,5.6405988,145.39,145.35,39.04]
[1750885418000,5.6405988,145.39,145.37,4.33024355]
[1750885418300,12.5150988,145.39,145.35,45.9159]
[1750885418805,6.8748,145.38,145.35,39.04]
[1750885419098,5.6405988,145.39,145.36,7.22095401]
[1750885419903,5.6405988,145.39,145.37,6.8748]
[1750885420296,5.6405988,145.39,145.36,7.22095401]
[1750885420598,5.6405988,145.39,145.36,14.09635401]
[1750885420797,5.6405988,145.39,145.38,7.2193421]
[1750885421506,5.6405988,145.39,145.38,14.0940421]
[1750885422201,11.3,145.42,145.41,6.8733]
[1750885422401,11.3,145.42,145.4,7.2193421]
[1750885422602,6.8716,145.45,145.4,14.0928421]
[1750885422809,39.04,145.46,145.4,14.0928421]
[1750885422995,39.04,145.46,145.41,6.8732]
[1750885423195,39.04,145.46,145.39,7.21616322]
[1750885423506,39.04,145.46,145.35,181.3]
[1750885423704,39.04,145.46,145.4,6.8736]
[1750885423911,6.8717,145.45,145.39,39.04]
[1750885424306,6.9626,145.48,145.39,39.04]
[1750885424495,6.8722,145.44,145.39,39.04]
[1750885424700,6.8722,145.44,145.4,6.8736]
[1750885425707,19.17616322,145.47,145.36,4.7052]
[1750885425910,19.17616322,145.47,145.39,39.02]
[1750885426426,11.96,145.47,145.46,7.21616322]
[1750885426703,6.8683,145.52,145.46,7.21616322]
[1750885426910,7.0076,145.56,145.46,7.21616322]
[1750885427110,14.22376322,145.56,145.46,7.21616322]
[1750885427614,7.0076,145.56,145.48,7.21616322]
[1750885427802,7.0076,145.56,145.49,6.8692]
[1750885428007,5.6405988,145.64,145.53,7.20671928]
[1750885428306,7.2173,145.63,145.55,7.20671928]
[1750885428809,6.864,145.61,145.56,6.8661]
[1750885429000,15.09,145.62,145.54,7.20041953]
[1750885429306,15.09,145.62,145.55,42.96]
[1750885430207,58.05,145.62,145.53,7.20041953]
[1750885430409,65.25041953,145.62,145.53,7.20041953]
[1750885430801,7.20041953,145.58,145.47,594.02]
[1750885431004,7.20041953,145.54,145.42,153.50169798]
[1750885431203,7.0873,145.53,145.45,7.20041953]
[1750885431703,7.0873,145.53,145.43,9.51071953]
[1750885431909,7.0873,145.53,145.43,7.20041953]
[1750885432209,636.7,145.58,145.45,7.21023579]
[1750885432413,7.21023579,145.56,145.47,7.21023579]
[1750885432709,636.7,145.58,145.49,7.21023579]
[1750885433095,6.867,145.55,145.49,7.21023579]
[1750885433500,6.8658,145.57,145.52,6.868]
[1750885433800,6.8658,145.57,145.5,42.94]
[1750885434006,6.8658,145.57,145.53,6.8676]
[1750885434314,6.8658,145.57,145.5,42.94]
[1750885434512,49.8054,145.58,145.51,7.21023579]
[1750885435001,42.94,145.58,145.51,7.21023579]
[1750885435203,6.8651,145.59,145.51,7.21023579]
[1750885435510,57.18843579,145.61,145.51,7.21023579]
[1750885435709,6.8657,145.58,145.54,6.867]
[1750885435922,57.18843579,145.61,145.54,6.867]
[1750885436210,6.8656,145.58,145.54,6.867]
[1750885436406,57.18843579,145.61,145.54,6.867]
[1750885436809,6.8663,145.56,145.5,42.94]
[1750885437009,7.20412096,145.58,145.5,42.94]
[1750885437404,6.8668,145.55,145.5,42.94]
[1750885437608,42.92,145.57,145.5,42.94]
[1750885437809,50.12412096,145.6,145.5,42.94]
[1750885438012,6.8665,145.56,145.5,42.94]
[1750885438212,50.12412096,145.6,145.5,42.94]
[1750885438609,6.8664,145.56,145.5,50.14412096]
[1750885439118,6.8664,145.56,145.52,6.8679]
[1750885439411,6.8664,145.56,145.5,50.14412096]
[1750885439817,6.8664,145.56,145.52,6.8678]
[1750885440014,6.8664,145.56,145.5,50.14412096]
[1750885440615,6.8664,145.56,145.5,42.94]
[1750885441714,6.8664,145.56,145.52,6.8678]
[1750885442020,42.92,145.6,145.5,42.94]
[1750885442226,7.20412096,145.57,145.47,50.12412096]
[1750885442422,42.92,145.56,145.49,6.8691]
[1750885442823,2.4144,145.55,145.49,6.8691]
[1750885443019,6.8689,145.51,145.48,6.8697]
[1750885443226,4.5894,145.54,145.47,42.92]
[1750885443719,7.20412096,145.53,145.43,11.85812096]
[1750885443924,7.20412096,145.53,145.44,42.92]
[1750885444120,4.5894,145.54,145.44,42.92]
[1750885444419,6.8693,145.5,145.46,6.8707]
[1750885444627,7.20412096,145.52,145.44,42.92]
[1750885444827,6.8695,145.5,145.46,6.8707]
[1750885445326,7.20412096,145.52,145.44,42.92]
[1750885445518,50.12412096,145.52,145.44,42.92]
[1750885445925,50.12412096,145.52,145.46,6.8707]
[1750885445926,6.8695,145.5,145.46,6.8707]
[1750885446223,6.8695,145.5,145.44,42.92]
[1750885446921,7.20412096,145.5,145.41,7.20412096]
[1750885447124,42.92,145.52,145.4,636.68]
[1750885447338,42.92,145.52,145.46,6.8707]
[1750885447526,6.8695,145.5,145.46,6.8707]
[1750885448026,6.8698,145.49,145.45,6.8712]
[1750885448229,7.20412096,145.51,145.41,7.20412096]
[1750885448622,7.20412096,145.49,145.42,6.8728]
[1750885448822,7.20412096,145.49,145.4,636.68]
[1750885449323,6.8713,145.46,145.4,636.68]
[1750885449525,7.20412096,145.49,145.4,636.68]
[1750885449727,6.8712,145.46,145.42,6.8725]
[1750885449927,6.8712,145.46,145.4,636.68]
[1750885451229,6.8712,145.46,145.42,6.8725]
[1750885451631,6.8712,145.46,145.4,636.68]
[1750885451829,6.8712,145.46,145.43,6.8723]
[1750885452224,6.8715,145.45,145.42,6.8724]
[1750885452521,2.2842,145.48,145.4,636.68]
[1750885452720,6.8712,145.46,145.4,636.68]
[1750885452917,2.2842,145.48,145.41,7.20412096]
[1750885453320,6.8698,145.49,145.43,7.20412096]
[1750885453825,2.3369,145.51,145.4,636.68]
[1750885454027,7.20412096,145.5,145.44,6.8716]
[1750885454424,6.8708,145.47,145.44,6.8716]
[1750885454729,7.20412096,145.5,145.43,6.8721]
[1750885454932,6.8709,145.47,145.43,6.8721]
[1750885455128,6.8709,145.47,145.41,7.20412096]
[1750885455734,6.8709,145.47,145.44,6.8717]
[1750885458939,14.0249819,145.51,145.45,6.8714]
[1750885459137,5.04030198,145.5,145.45,6.8714]
[1750885459338,5.04030198,145.49,145.45,6.8714]
[1750885459537,14.0249819,145.51,145.45,6.8714]
[1750885459740,5.04717736,145.5,145.41,7.20412096]
[1750885459939,5.04717736,145.49,145.41,7.20412096]
[1750885460240,6.8709,145.47,145.44,6.8718]
[1750885461838,6.871,145.46,145.44,6.8718]
[1750885462861,2.4352,145.48,145.4,42.92]
[1750885462862,5.06146497,145.45,145.4,42.92]
[1750885463044,9.50982096,145.47,145.37,195.96412096]
[1750885463339,7.20412096,145.45,145.35,49.70412096]
[1750885463539,54.32010223,145.44,145.35,42.5]
[1750885463836,9.56094328,145.43,145.38,6.8746]
[1750885464037,5.06176102,145.42,145.35,42.5]
[1750885464238,11.93972752,145.41,145.35,42.5]
[1750885464439,6.8736,145.41,145.35,42.5]
[1750885464739,6.8736,145.41,145.38,6.8746]
[1750885465140,6.8738,145.4,145.35,42.5]
[1750885465442,2.4252,145.42,145.35,42.5]
[1750885465745,6.8741,145.4,145.37,6.8749]
[1750885466343,2.4252,145.42,145.37,6.8749]
[1750885466531,6.8739,145.4,145.37,6.8749]
[1750885467142,6.8734,145.41,145.35,42.5]
[1750885467344,2.4252,145.42,145.35,42.5]
[1750885467537,5.06771679,145.41,145.35,42.5]
[1750885467737,2.4252,145.42,145.35,42.5]
[1750885467940,11.94131968,145.41,145.35,42.5]
[1750885468245,6.8736,145.41,145.35,42.5]
[1750885468737,2.4252,145.42,145.35,49.71943038]
[1750885468940,15.92,145.43,145.35,49.71943038]
[1750885469144,15.92,145.43,145.39,6.874]
[1750885469445,6.8729,145.42,145.35,49.71943038]
[1750885469845,6.8729,145.42,145.38,6.8744]
[1750885470143,6.8729,145.42,145.35,49.71943038]
[1750885470343,6.8729,145.42,145.39,6.874]
[1750885470845,15.92,145.43,145.33,593.62]
[1750885471046,12.2598111,145.42,145.33,643.35943038]
[1750885471241,7.21943038,145.42,145.33,42.52]
[1750885471543,6.875,145.38,145.35,6.876]
[1750885472146,6.8752,145.37,145.35,6.876]
[1750885472346,2.3146,145.4,145.35,6.876]
[1750885472644,6.8746,145.39,145.36,6.8757]
[1750885472843,2.3146,145.4,145.33,42.52]
[1750885473348,6.875,145.38,145.35,6.8759]
[1750885474641,2.3146,145.4,145.35,6.8759]
[1750885476144,6.8753,145.37,145.34,6.8764]
[1750885476350,6.8753,145.37,145.3,44.815]
[1750885476351,52.05403038,145.4,145.3,52.03443038]
[1750885476551,7.21943038,145.38,145.27,2.4513]
[1750885476753,7.21943038,145.36,145.29,6.8787]
[1750885477045,2.3757,145.37,145.23,47.4197]
[1750885477046,7.21943038,145.32,145.23,47.4197]
[1750885477249,7.21943038,145.3,145.19,593.9]
[1750885477454,2.3307,145.29,145.2,49.73943038]
[1750885477852,7.21943038,145.28,145.2,42.52]
[1750885478154,7.21943038,145.26,145.18,4.9166]
[1750885478354,6.8815,145.24,145.18,4.9166]
[1750885478551,42.52,145.26,145.18,4.9166]
[1750885478851,42.52,145.26,145.18,12.13603038]
[1750885479453,6.8815,145.24,145.2,6.883]
[1750885480148,42.52,145.26,145.19,6.8835]
[1750885480149,6.882,145.23,145.19,6.8835]
[1750885480351,49.73943038,145.26,145.19,6.8835]
[1750885480555,7.21943038,145.24,145.17,42.52]
[1750885480856,7.21943038,145.22,145.16,6.8849]
[1750885481050,2.4009,145.21,145.16,6.8849]
[1750885481251,2.4009,145.21,145.12,636.42]
[1750885481252,9.64330218,145.21,145.14,6.8858]
[1750885481757,6.8855,145.16,145.12,6.8867]
[1750885482050,42.54,145.18,145.09,49.78240218]
[1750885482254,6.8848,145.17,145.13,6.8863]
[1750885482449,42.54,145.18,145.09,42.54]
[1750885482648,42.54,145.18,145.09,49.78450993]
[1750885482953,42.54,145.18,145.12,6.8869]
[1750885483155,42.54,145.18,145.09,49.78450993]
[1750885483357,7.24450993,145.17,145.09,42.54]
[1750885483560,42.54,145.18,145.09,49.78450993]
[1750885483851,42.54,145.18,145.1,7.24450993]
[1750885484564,49.78450993,145.18,145.13,6.8863]
[1750885484859,7.24678028,145.17,145.07,7.24678028]
[1750885485157,7.24678028,145.15,145.06,104.56]
[1750885485858,2.2703,145.16,145.07,7.24678028]
[1750885486256,9.1557,145.16,145.12,6.8868]
[1750885486563,42.54,145.18,145.09,7.24678028]
[1750885486765,42.54,145.18,145.15,6.8855]
[1750885486964,42.54,145.18,145.1,42.56]
[1750885487466,42.54,145.18,145.15,6.8855]
[1750885487664,42.54,145.18,145.1,49.80678028]
[1750885487863,49.4243,145.18,145.14,6.886]
[1750885488466,49.4243,145.18,145.1,42.56]
[1750885488467,49.78678028,145.18,145.1,42.56]
[1750885488659,7.24678028,145.16,145.07,42.58]
[1750885488857,6.8857,145.15,145.12,6.887]
[1750885489064,6.8857,145.15,145.07,42.58]
[1750885489260,7.24678028,145.16,145.07,42.58]
[1750885489762,7.24678028,145.16,145.06,49.82678028]
[1750885489970,6.8864,145.14,145.1,6.8877]
[1750885490370,6.8856,145.15,145.11,6.8871]
[1750885490569,6.8856,145.15,145.06,49.82678028]
[1750885490967,6.8856,145.15,145.11,6.8872]
[1750885491772,6.8856,145.15,145.06,49.82678028]
[1750885492367,7.24678028,145.16,145.11,6.8872]
[1750885492763,6.8864,145.14,145.1,6.8878]
[1750885492965,7.24678028,145.16,145.1,6.8878]
[1750885493569,6.8868,145.13,145.1,6.8878]
[1750885494173,6.8864,145.14,145.07,7.24678028]
[1750885494375,7.24678028,145.16,145.07,7.24678028]
[1750885495275,6.8863,145.14,145.11,6.8875]
[1750885495476,7.24678028,145.16,145.07,7.24678028]
[1750885495874,6.8862,145.14,145.07,7.24678028]
[1750885496372,7.24678028,145.16,145.07,7.24678028]
[1750885496676,6.8866,145.13,145.1,6.8877]
[1750885496991,7.24678028,145.16,145.07,7.24678028]
[1750885498277,6.8864,145.14,145.1,6.8876]
[1750885499279,6.8864,145.14,145.07,7.24678028]
[1750885499482,15.01,145.15,145.07,7.24678028]
[1750885499681,15.01,145.15,145.11,6.8872]
[1750885500475,6.8861,145.14,145.11,6.8872]
[1750885500678,15.01,145.15,145.09,7.24526691]
[1750885500973,6.8826,145.22,145.13,7.24526691]
[1750885501177,2.4665,145.23,145.15,7.24526691]
[1750885501375,7.24526691,145.22,145.11,2.469]
[1750885501573,7.24526691,145.18,145.1,42.08]
[1750885501770,7.24526691,145.18,145.09,42.08]
[1750885501970,6.8858,145.15,145.09,42.08]
[1750885502379,6.8858,145.15,145.1,6.8875]
[1750885502583,6.8858,145.15,145.09,42.08]
[1750885503081,6.8858,145.15,145.11,6.8875]
[1750885503278,6.8858,145.15,145.09,42.08]
[1750885503676,2.2918,145.17,145.11,6.8874]
[1750885504278,2.2918,145.17,145.09,42.08]
[1750885505075,7.2459286,145.14,145.06,3.6678838]
[1750885505281,7.2459286,145.14,145.07,187.2]
[1750885505779,6.8874,145.12,145.08,6.8885]
[1750885505979,6.8874,145.12,145.07,187.2]
[1750885506380,6.8879,145.11,145.07,187.2]
[1750885506972,6.8879,145.11,145.07,194.089]
[1750885507187,6.8879,145.11,145.07,187.2]
[1750885508185,7.2459286,145.12,145.06,2.469]
[1750885508388,7.2459286,145.12,145.07,42.08]
[1750885508587,7.2459286,145.12,145.07,48.9691]
[1750885508777,7.2459286,145.12,145.07,42.08]
[1750885509394,6.8883,145.1,145.07,48.9692]
[1750885510081,7.2459286,145.12,145.06,6.8898]
[1750885510286,7.2459286,145.1,145.03,186.86]
[1750885510683,6.8895,145.07,145.03,186.86]
[1750885510986,7.2459286,145.1,145.03,186.86]
[1750885511581,44.3738,145.15,145.03,42.08]
[1750885511788,7.2459286,145.12,145.07,6.8893]
[1750885511981,7.2459286,145.12,145.04,144.72]
[1750885512293,7.2459286,145.1,145.04,144.72]
[1750885513292,6.8894,145.07,145.05,6.8901]
[1750885515186,6.8894,145.07,145.04,151.6106]
[1750885515785,6.8894,145.07,145.05,6.8903]
[1750885516287,6.8894,145.07,145.03,186.6]
[1750885516482,6.8894,145.07,145.04,6.8904]
[1750885516682,6.8894,145.07,145.03,186.6]
[1750885517291,6.8894,145.07,145.05,6.8903]
[1750885517490,6.8894,145.07,145.03,186.6]
[1750885517878,6.8894,145.07,145.04,6.8906]
[1750885518589,4.35222793,145.07,145.03,6.891]
[1750885519195,4.35222793,145.07,145.01,193.132]
[1750885519488,4.35222793,145.07,145.01,186.24]
[1750885519693,4.35222793,145.07,145.02,6.8915]
[1750885520383,4.35222793,145.07,145.01,186.14]
[1750885521391,6.8906,145.05,145.01,186.14]
[1750885521590,4.35222793,145.07,145.01,186.14]
[1750885521793,6.8903,145.06,145.03,6.891]
[1750885521990,4.35222793,145.07,145.03,6.891]
[1750885522389,6.8902,145.06,145.03,6.891]
[1750885522891,6.8904,145.05,145.03,6.891]
[1750885523390,6.8911,145.04,145.01,186.14]
[1750885523593,4.35222793,145.05,145.01,186.14]
[1750885523798,7.77004877,145.09,145.01,186.14]
[1750885523995,4.35222793,145.06,144.98,599.37222793]
[1750885524191,4.35222793,145.06,145.01,6.8921]
[1750885524391,6.8913,145.03,145.0,184.7]
[1750885524589,4.35222793,145.04,144.95,4.35222793]
[1750885524790,4.35222793,145.04,144.99,6.8931]
[1750885525094,4.35222793,145.04,144.97,143.76]
[1750885525391,6.8921,145.02,144.99,6.8929]
[1750885525594,6.8921,145.02,144.96,40.88]
[1750885525595,6.8921,145.02,144.98,143.76]
[1750885525896,6.8916,145.03,144.98,143.76]
[1750885526188,4.35222793,145.05,144.96,45.23222793]
[1750885526388,6.8916,145.03,144.97,143.74]
[1750885526596,4.35222793,145.05,144.97,143.74]
[1750885526992,6.8916,145.03,145.0,6.8926]
[1750885527193,4.35222793,145.05,144.97,143.74]
[1750885527589,6.8916,145.03,145.0,6.8923]
[1750885527793,4.35222793,145.07,145.0,40.88]
[1750885528097,6.8901,145.06,145.03,6.8911]
[1750885528297,4.35222793,145.08,145.0,40.88]
[1750885528888,6.8905,145.05,145.02,6.8915]
[1750885529198,6.8905,145.05,145.0,40.88]
[1750885529598,4.35222793,145.06,145.0,40.88]
[1750885530027,4.35222793,145.06,145.01,6.892]
[1750885530899,4.35222793,145.06,145.02,6.8917]
[1750885531107,4.35320773,145.08,145.0,40.88]
[1750885531401,6.8898,145.07,145.04,6.8906]
[1750885532003,6.8893,145.08,145.05,6.8901]
[1750885532203,6.60440773,145.09,145.0,45.7748]
[1750885532610,6.8892,145.08,145.05,6.8902]
[1750885533301,6.8895,145.07,145.05,6.8902]
[1750885533903,6.8899,145.06,145.0,45.7748]
[1750885534603,6.8899,145.06,145.0,50.12751149]
[1750885535096,4.35271149,145.04,144.95,12.59272308]
[1750885535303,4.35271149,145.02,144.96,40.88]
[1750885536301,6.8928,145.0,144.96,40.88]
[1750885536500,4.35271149,145.02,144.96,40.88]
[1750885536696,6.8923,145.01,144.98,6.8934]
[1750885538106,4.35271149,145.02,144.98,6.8934]
[1750885538902,6.8926,145.01,144.98,6.8934]
[1750885539308,6.8926,145.01,144.99,6.8932]
[1750885539607,4.35271149,145.02,144.96,40.88]
[1750885539608,6.8927,145.0,144.96,40.88]
[1750885540909,24.0625,145.01,144.98,6.8935]
[1750885542709,17.17,145.01,144.97,6.894]
[1750885543411,6.8928,145.0,144.97,6.894]
[1750885543605,17.17,145.01,144.97,6.894]
[1750885544511,6.8928,145.0,144.97,6.894]
[1750885544814,6.894,144.98,144.96,6.8944]
[1750885545014,6.894,144.98,144.95,40.88]
[1750885545212,4.35271149,145.0,144.96,6.8942]
[1750885545913,6.8935,144.99,144.96,6.8942]
[1750885546212,17.17,145.01,144.95,40.88]
[1750885546706,6.8942,144.97,144.95,47.7749]
[1750885546907,6.8942,144.97,144.95,6.8949]
[1750885547820,4.35271149,144.98,144.92,595.26]
[1750885548111,6.8949,144.96,144.92,595.26]
[1750885548314,4.35271149,144.98,144.91,40.9]
[1750885549208,4.35271149,144.96,144.91,40.9]
[1750885549409,4.35271149,144.96,144.89,47.67191149]
[1750885550112,6.8954,144.95,144.92,6.8961]
[1750885550423,4.35271149,144.96,144.89,47.67191149]
[1750885550812,4.35271149,144.96,144.93,6.8958]
[1750885551016,4.35850024,144.99,144.91,4.35850024]
[1750885551423,6.894,144.98,144.95,6.8949]
[1750885551922,6.8954,144.95,144.92,6.8963]
[1750885553125,6.8954,144.95,144.9,39.84]
[1750885553126,4.35850024,144.97,144.9,39.84]
[1750885553315,44.19850024,144.97,144.9,39.84]
[1750885553630,4.35850024,144.95,144.9,39.84]
[1750885554121,6.896,144.94,144.91,6.8968]
[1750885554524,4.35850024,144.95,144.91,6.8968]
[1750885554717,6.8964,144.93,144.9,46.7373]
[1750885555317,4.35850024,144.95,144.9,46.7373]
[1750885555524,4.35850024,144.95,144.9,6.8973]
[1750885556228,6.8966,144.92,144.9,6.8973]
[1750885556726,6.8971,144.91,144.89,6.8978]
[1750885556921,4.35850024,144.95,144.88,4.35850024]
[1750885557324,6.8961,144.93,144.91,6.897]
[1750885558021,6.8961,144.93,144.9,6.8973]
[1750885558623,6.8959,144.94,144.91,6.8968]
[1750885559021,9.1749,144.98,144.9,4.36034145]
[1750885559224,2.281,144.98,144.92,4.36034145]
[1750885559421,2.281,144.98,144.92,44.20034145]
[1750885559624,19.6103,145.01,144.92,44.20034145]
[1750885560033,63.81064145,145.01,144.92,44.20034145]
[1750885560232,6.8935,144.99,144.95,6.8948]
[1750885560529,63.81064145,145.01,144.95,6.8948]
[1750885560726,6.8936,144.99,144.96,6.8944]
[1750885560925,6.8936,144.99,144.92,44.20034145]
[1750885561130,6.8938,144.98,144.94,6.8951]
[1750885561327,6.8938,144.98,144.92,44.20034145]
[1750885561628,46.64064145,145.01,144.92,44.20034145]
[1750885561830,4.36034145,144.99,144.92,39.84]
[1750885562034,4.36034145,144.99,144.89,2.4454]
[1750885562233,4.36034145,144.99,144.91,4.36034145]
[1750885562632,4.36034145,144.97,144.9,39.84]
[1750885562835,2.3094,144.96,144.9,39.84]
[1750885563030,17.8694,144.96,144.9,39.84]
[1750885563738,17.8694,144.96,144.9,46.7372]
[1750885564230,6.8962,144.93,144.9,6.8972]
[1750885564627,17.8694,144.96,144.9,6.8972]
[1750885564821,6.8959,144.94,144.91,6.8969]
[1750885565028,17.8694,144.96,144.87,42.2277]
[1750885565232,17.8694,144.96,144.9,6.8972]
[1750885565732,17.8694,144.96,144.89,6.8976]
[1750885565937,17.8694,144.96,144.88,4.36034145]
[1750885566926,6.8962,144.93,144.9,6.8972]
[1750885567340,6.8966,144.92,144.89,6.8978]
[1750885567739,17.8694,144.96,144.89,6.8978]
[1750885567941,17.8694,144.96,144.88,4.36034145]
[1750885568333,20.2989,144.96,144.88,4.36034145]
[1750885568844,6.8962,144.93,144.9,6.8973]
[1750885569349,6.8962,144.93,144.84,50.64561935]
[1750885569350,4.36148416,144.92,144.84,50.64561935]
[1750885569545,4.36148416,144.92,144.84,46.52618416]
[1750885569947,6.8977,144.9,144.86,6.8991]
[1750885570154,6.8977,144.9,144.84,46.52618416]
[1750885571847,6.8972,144.91,144.87,6.8986]
[1750885572054,6.8972,144.91,144.84,46.52618416]
[1750885572263,44.20148416,144.93,144.84,188.92618416]
[1750885572448,6.8976,144.9,144.84,188.92618416]
[1750885572858,6.8976,144.9,144.87,6.8989]
[1750885574358,6.8982,144.89,144.86,6.8993]
[1750885574563,44.20148416,144.93,144.85,4.36148416]